lending/lending_fUSD_20241012
["ID","MTS","AMOUNT","RATE_DAILY","PERIOD"]
[340163968,1728728216145,-1139.81552629,0.0001078,2]
[340163969,1728728216167,-1111.82480145,0.0001078,2]
[340163970,1728728216188,-8794.7515,0.000108,2]
[340163971,1728728216212,-935.8149,0.000108,2]
[340163972,1728728216235,-552.1844,0.00010859,2]
[340163973,1728728216255,-150.0,0.00010899,2]
[340163974,1728728216275,-499.99,0.00010899,2]
[340163975,1728728216295,-7500.0,0.000109,2]
[340163976,1728728216315,-3497.970885,0.000109,2]
[340163977,1728728216335,-32269.9641,0.000109,2]
[340163978,1728728216357,-886.48569806,0.000109,2]
[340163979,1728728216377,-500.0,0.00010912,2]
[340163980,1728728216398,-157.07,0.00010959,2]
[340163981,1728728216418,-151.10256246,0.00010973,2]
[340163982,1728728216437,-151.10256229,0.00010973,2]
[340163983,1728728216461,-161.08637369,0.00010973,2]
[340163984,1728728216481,-151.10256229,0.00010973,2]
[340163985,1728728216502,-161.06935003,0.00010973,2]
[340163986,1728728216523,-151.12814635,0.00010973,2]
[340163987,1728728216545,-151.10256229,0.00010973,2]
[340163988,1728728216565,-151.0604523,0.00010973,2]
[340163989,1728728216586,-500.0,0.00010973,2]
[340163990,1728728216607,-151.06045213,0.00010973,2]
[340163991,1728728216629,-160.01692402,0.00010973,2]
[340163992,1728728216651,-2981.5671845,0.00010995,2]
[340163993,1728728216672,-312.3517364,0.00010995,2]
[340163994,1728728216693,-5502.88032068,0.00010999,2]
[340163995,1728728216713,-95921.01627794,0.00010999,2]
[340163997,1728728329019,198.67,0.00010216,2]
[340163998,1728728490504,500.0,8.664e-05,2]
[340163999,1728728503172,525.08,8.276e-05,2]
[340164000,1728728550783,250.0,0.00010175,2]
[340164001,1728728656478,500.0,8.664e-05,2]
[340164011,1728728771339,250.0,0.00010115,2]
[340164012,1728728823208,1000.0,0.00010131,2]
[340164013,1728728857506,156.18,9.919e-05,2]
[340164014,1728728926739,137084.70769497,0.0001,2]
[340164069,1728729031940,-337.36323209,0.00010539,2]
[340164070,1728729031954,-187.71676791,0.00010539,2]
[340164071,1728729031965,-150.0,0.00010723,2]
[340164072,1728729031977,-150.0,0.00010724,2]
[340164073,1728729031986,-150.0,0.00010726,2]
[340164074,1728729032000,-300.0,0.00010727,2]
[340164075,1728729032011,-150.0,0.00010728,2]
[340164076,1728729032023,-150.0,0.00010729,2]
[340164077,1728729032034,-150.0,0.00010731,2]
[340164078,1728729032045,-1500.0,0.00010734,2]
[340164079,1728729032056,-150.0,0.00010735,2]
[340164080,1728729032067,-150.0,0.00010745,2]
[340164081,1728729032080,-150.0,0.00010746,2]
[340164082,1728729032091,-150.0,0.00010746,2]
[340164083,1728729032101,-150.0,0.00010753,2]
[340164084,1728729032113,-150.0,0.00010756,2]
[340164085,1728729032125,-150.0,0.00010759,2]
[340164086,1728729032136,-150.0,0.00010759,2]
[340164087,1728729032148,-150.0,0.0001076,2]
[340164088,1728729032159,-150.0,0.00010761,2]
[340164089,1728729032171,-150.0,0.00010779,2]
[340164090,1728729032181,-150.0,0.00010782,2]
[340164091,1728729032191,-150.0,0.00010787,2]
[340164092,1728729032201,-150.0,0.00010788,2]
[340164093,1728729032211,-111.94973124,0.00010796,2]
[340164094,1728729032223,-38.05026876,0.00010796,2]
[340164095,1728729032234,-150.0,0.00010797,2]
[340164096,1728729032245,-111.94973124,0.00010798,2]
[340164097,1728729032258,-38.05026876,0.00010798,2]
[340164098,1728729032269,-150.0,0.00010798,2]
[340164099,1728729032281,-150.0,0.00010798,2]
[340164100,1728729032291,-65.94973124,0.00010808,2]
[340164102,1728729032305,-84.05026876,0.00010808,2]
[340164104,1728729032315,-150.0,0.00010808,2]
[340164106,1728729032325,-150.0,0.00010816,2]
[340164108,1728729032336,-150.0,0.00010816,2]
[340164110,1728729032348,-150.0,0.00010823,2]
[340164111,1728729032359,-150.0,0.00010828,2]
[340164112,1728729032370,-150.0,0.00010828,2]
[340164113,1728729032380,-150.0,0.00010834,2]
[340164114,1728729032391,-150.0,0.0001084,2]
[340164115,1728729032403,-150.0,0.00010842,2]
[340164116,1728729032414,-150.0,0.00010847,2]
[340164117,1728729032425,-150.0,0.00010854,2]
[340164118,1728729032438,-150.0,0.00010859,2]
[340164119,1728729032448,-150.0,0.0001086,2]
[340164120,1728729032458,-150.0,0.00010862,2]
[340164121,1728729032468,-150.0,0.00010862,2]
[340164122,1728729032479,-150.0,0.00010862,2]
[340164123,1728729032491,-150.0,0.00010865,2]
[340164124,1728729032501,-150.0,0.00010866,2]
[340164125,1728729032512,-150.0,0.00010867,2]
[340164126,1728729032525,-150.0,0.00010871,2]
[340164127,1728729032536,-150.0,0.00010873,2]
[340164128,1728729032547,-150.0,0.00010876,2]
[340164129,1728729032558,-150.0,0.00010889,2]
[340164130,1728729032568,-150.0,0.00010889,2]
[340164131,1728729032579,-150.0,0.00010892,2]
[340164132,1728729032590,-150.0,0.00010893,2]
[340164133,1728729032600,-1500.0,0.00010898,2]
[340164134,1728729032612,-7154.18678064,0.00010899,2]
[340164135,1728729032625,-883.0,0.00010899,2]
[340164136,1728729032638,-349.70936002,0.00010899,2]
[340164137,1728729032650,-3700.0,0.00010899,2]
[340164138,1728729032667,-811.05669613,0.00010899,2]
[340164139,1728729032681,-493.5770007,0.00010899,2]
[340164140,1728729032694,-264.82796935,0.00010899,2]
[340164141,1728729032707,-413.47322908,0.00010899,2]
[340164142,1728729032721,-499.77606145,0.00010899,2]
[340164143,1728729032740,-295.44814184,0.00010899,2]
[340164144,1728729032752,-6149.07558323,0.00010899,2]
[340164145,1728729032764,-5928.66357756,0.00010899,2]
[340164146,1728729032775,-357.0158,0.00010899,2]
[340164147,1728729032785,-1543.1175,0.000109,2]
[340164148,1728729032797,-228.117,0.000109,2]
[340164149,1728729032811,-169.38536069,0.000109,2]
[340164150,1728729032821,-150.0,0.000109,2]
[340164151,1728729032831,-330.86474301,0.000109,2]
[340164152,1728729032842,-150.0,0.00010901,2]
[340164153,1728729032852,-150.0,0.00010903,2]
[340164154,1728729032863,-150.0,0.00010903,2]
[340164155,1728729032874,-150.0,0.00010904,2]
[340164156,1728729032885,-150.0,0.00010912,2]
[340164157,1728729032895,-150.0,0.00010912,2]
[340164158,1728729032906,-150.0,0.00010929,2]
[340164159,1728729032916,-150.0,0.00010933,2]
[340164160,1728729032927,-150.0,0.00010935,2]
[340164161,1728729032938,-150.0,0.00010938,2]
[340164162,1728729032949,-150.0,0.00010938,2]
[340164163,1728729032959,-150.0,0.00010945,2]
[340164164,1728729032971,-150.0,0.00010946,2]
[340164165,1728729032983,-150.0,0.00010949,2]
[340164166,1728729032993,-150.0,0.00010952,2]
[340164167,1728729033004,-150.0,0.00010952,2]
[340164168,1728729033014,-150.0,0.00010954,2]
[340164169,1728729033025,-150.0,0.00010956,2]
[340164170,1728729033035,-150.0,0.00010956,2]
[340164171,1728729033046,-231.53,0.00010959,2]
[340164172,1728729033058,-153.25,0.00010959,2]
[340164173,1728729033069,-250.0,0.00010959,2]
[340164174,1728729033081,-150.0,0.0001096,2]
[340164175,1728729033092,-151.85608626,0.00010964,2]
[340164176,1728729033104,-150.0,0.00010968,2]
[340164177,1728729033115,-150.0,0.00010968,2]
[340164178,1728729033125,-500.0,0.00010973,2]
[340164179,1728729033135,-160.33515592,0.00010973,2]
[340164180,1728729033146,-505.36067579,0.00010973,2]
[340164181,1728729033157,-150.0,0.00010973,2]
[340164182,1728729033168,-150.0,0.00010979,2]
[340164183,1728729033362,-450.3104,0.00010986,2]
[340164184,1728729033378,-150.0,0.00010987,2]
[340164185,1728729033389,-260.2931136,0.00010995,2]
[340164186,1728729033399,-481.30427376,0.00010995,2]
[340164187,1728729033411,-683.88174154,0.00010995,2]
[340164188,1728729033421,-28.95350876,0.00010995,2]
[340164189,1728729033434,-511.17098824,0.00010995,2]
[340164190,1728729033448,-626.15998617,0.00010999,2]
[340164191,1728729033460,-2272.32889956,0.00010999,2]
[340164192,1728729033470,-101239.10071114,0.00011,2]
[340164193,1728729033480,-197290.77517845,0.00011,2]
[340164194,1728729033491,-20749.79451865,0.00011,2]
[340164195,1728729033503,-8741.94797892,0.00011,2]
[340164196,1728729033515,-909.3594811,0.00011,2]
[340164197,1728729033552,-300.0,0.00011,2]
[340164198,1728729033567,-573.03210488,0.00011,2]
[340164199,1728729033581,-3487.72454368,0.00011,2]
[340164200,1728729033594,-7053.36915987,0.00011,2]
[340164207,1728729038168,-15000.0,0.00011,2]
[340164208,1728729038179,-6776.7347228,0.00011,2]
[340164209,1728729038318,-6485.39983776,0.00011,2]
[340164210,1728729038399,-18942.67687625,0.00011,2]
[340164215,1728729040172,-654.52519987,0.00011,2]
[340164216,1728729040184,-511.7700001,0.00011,2]
[340164217,1728729040195,-34902.01865888,0.00011,2]
[340164218,1728729040207,-55924.41,0.00011,2]
[340164219,1728729040260,-630.61,0.00011,2]
[340164298,1728729042962,-1090.78949908,0.0001078,2]
[340164299,1728729042971,-3034.56648801,0.00011,2]
[340164300,1728729043187,-404.0366,0.00011,2]
[340164301,1728729043203,-1057358.36965392,0.00011,2]
[340164309,1728729046500,-216.910928,0.00010995,2]
[340164310,1728729046509,-441.33519796,0.00011,2]
[340164311,1728729136803,502.27,8.762e-05,2]
[340164312,1728729195761,250.0,9.881e-05,2]
[340164313,1728729396612,200.0,9.88e-05,2]
[340164314,1728729412858,174.57,9.88e-05,2]
[340164315,1728729432503,292.03,9.885e-05,2]
[340164316,1728729476606,372.43,9.889e-05,2]
[340164317,1728729499557,250.0,9.885e-05,2]
[340164318,1728729522946,172.51,9.886e-05,2]
[340164319,1728729626592,507.89,8.219e-05,2]
[340164320,1728729750972,250.0,9.878e-05,2]
[340164323,1728729979104,738.06,9.894e-05,2]
[340164324,1728729997239,-507.89,0.0001047,2]
[340164325,1728729997261,-150.0,0.00010712,2]
[340164326,1728729997284,-150.0,0.00010725,2]
[340164327,1728729997306,-150.0,0.00010726,2]
[340164328,1728729997327,-300.0,0.00010729,2]
[340164329,1728729997347,-4948.11,0.00010729,2]
[340164330,1728730000238,840.0,9.894e-05,2]
[340164336,1728730087732,613.41,9.904e-05,2]
[340164337,1728730096931,1907.21,9.904e-05,2]
[340164338,1728730097134,1907.21,9.907e-05,2]
[340164339,1728730097334,1907.21,9.909e-05,2]
[340164340,1728730097987,1907.21,9.912e-05,2]
[340164341,1728730098202,1907.21,9.915e-05,2]
[340164342,1728730098412,1907.21,9.917e-05,2]
[340164343,1728730098613,1907.21,9.92e-05,2]
[340164344,1728730098823,1907.21,9.922e-05,2]
[340164345,1728730099272,1907.21,9.925e-05,2]
[340164346,1728730099698,1907.21,9.928e-05,2]
[340164347,1728730099917,1907.21,9.93e-05,2]
[340164348,1728730100147,1907.21,9.933e-05,2]
[340164349,1728730100356,1907.21,9.935e-05,2]
[340164350,1728730100641,1907.21,9.938e-05,2]
[340164351,1728730100866,1907.21,9.941e-05,2]
[340164352,1728730101083,1907.21,9.943e-05,2]
[340164353,1728730101272,1907.21,9.946e-05,2]
[340164354,1728730101476,1907.21,9.948e-05,2]
[340164355,1728730101676,1907.21,9.951e-05,2]
[340164356,1728730101881,1907.21,9.954e-05,2]
[340164357,1728730144080,489.23,8.219e-05,2]
[340164434,1728730163222,250.0,9.904e-05,2]
[340164435,1728730163675,158.08,9.904e-05,2]
[340164438,1728730232100,-479.57301165,0.00010471,2]
[340164440,1728730232209,-9.65698835,0.00010471,2]
[340164441,1728730232219,-1587.0032108,0.0001073,2]
[340164442,1728730232229,-150.0,0.00010736,2]
[340164443,1728730232239,-150.0,0.00010745,2]
[340164444,1728730232251,-23760.69366857,0.00010748,2]
[340164445,1728730232260,-300.0,0.00010748,2]
[340164446,1728730232270,-150.0,0.00010749,2]
[340164447,1728730232279,-1500.0,0.00010775,2]
[340164448,1728730232288,-1649.15767791,0.0001078,2]
[340164449,1728730232298,-499.99,0.0001078,2]
[340164450,1728730232307,-150.0,0.00010782,2]
[340164451,1728730232316,-150.0,0.00010782,2]
[340164452,1728730232325,-150.0,0.00010785,2]
[340164453,1728730232335,-150.0,0.00010789,2]
[340164454,1728730232345,-150.0,0.00010792,2]
[340164455,1728730232354,-150.0,0.000108,2]
[340164456,1728730232364,-150.0,0.00010805,2]
[340164458,1728730232374,-167.94,0.0001081,2]
[340164460,1728730232383,-150.0,0.00010824,2]
[340164462,1728730232393,-5643.351,0.00010833,2]
[340164464,1728730232402,-150.0,0.00010846,2]
[340164465,1728730232411,-150.0,0.00010849,2]
[340164467,1728730232421,-150.0,0.00010851,2]
[340164469,1728730232432,-150.0,0.00010854,2]
[340164471,1728730232442,-150.0,0.00010859,2]
[340164473,1728730232452,-150.0,0.00010876,2]
[340164475,1728730232462,-150.0,0.00010885,2]
[340164477,1728730232471,-150.0,0.00010885,2]
[340164479,1728730232480,-150.0,0.00010892,2]
[340164481,1728730232490,-150.0,0.00010894,2]
[340164483,1728730232499,-150.0,0.00010898,2]
[340164485,1728730232508,-392.13007046,0.00010899,2]
[340164486,1728730232517,-45428.93597078,0.000109,2]
[340164489,1728730232529,-577.08950482,0.000109,2]
[340164491,1728730232540,-1089.32754268,0.000109,2]
[340164493,1728730232556,-824.98309306,0.000109,2]
[340164496,1728730232567,-7252.51713361,0.000109,2]
[340164499,1728730232593,-1297.08366505,0.000109,2]
[340164583,1728730234797,1083.05,9.904e-05,2]
[340164589,1728730238414,-14001.08549,0.000109,2]
[340164590,1728730238424,-2064.8637,0.000109,2]
[340164591,1728730238433,-1091.203,0.000109,2]
[340164592,1728730238442,-307.0,0.000109,2]
[340164593,1728730238451,-198.51884578,0.000109,2]
[340164594,1728730238461,-160.91279698,0.000109,2]
[340164595,1728730238470,-169.38536068,0.000109,2]
[340164596,1728730238479,-1131.0,0.000109,2]
[340164597,1728730238489,-535.91912654,0.000109,2]
[340164598,1728730238499,-2880.91334312,0.000109,2]
[340164599,1728730238508,-150.0,0.00010903,2]
[340164600,1728730238517,-150.0,0.00010905,2]
[340164601,1728730238527,-500.0,0.00010912,2]
[340164602,1728730238538,-150.0,0.00010912,2]
[340164603,1728730238547,-219.817,0.00010915,2]
[340164604,1728730238556,-198.51884577,0.00010915,2]
[340164605,1728730238566,-150.0,0.00010928,2]
[340164606,1728730238575,-198.51884577,0.0001093,2]
[340164607,1728730238584,-150.0,0.00010935,2]
[340164608,1728730238593,-150.0,0.00010942,2]
[340164609,1728730238602,-150.0,0.00010943,2]
[340164610,1728730238611,-150.0,0.00010951,2]
[340164611,1728730238621,-150.0,0.00010957,2]
[340164612,1728730238630,-200.0,0.00010959,2]
[340164613,1728730238639,-160.03,0.00010959,2]
[340164614,1728730238648,-324.2,0.00010959,2]
[340164615,1728730238657,-158.62,0.00010959,2]
[340164616,1728730238666,-1508.69086957,0.00010959,2]
[340164617,1728730238678,-8355.461751,0.00010959,2]
[340164618,1728730238690,-37616.033428,0.00010959,2]
[340164619,1728730238701,-1048.20235265,0.00010959,2]
[340164620,1728730238712,-907.7184,0.00010959,2]
[340164635,1728730240198,-1143.33110083,0.00010959,2]
[340164636,1728730240210,-313.83320803,0.00010959,2]
[340164637,1728730240239,-14317.07754689,0.00010959,2]
[340164638,1728730240250,-814.41716307,0.00010959,2]
[340164639,1728730240456,-2360.78417996,0.00010959,2]
[340164640,1728730240466,-250.0,0.00010959,2]
[340164641,1728730240475,-341.28879965,0.00010973,2]
[340164642,1728730240486,-158.71120035,0.00010973,2]
[340164643,1728730240496,-115.6286145,0.00010973,2]
[340164644,1728730240507,-35.49656916,0.00010973,2]
[340164645,1728730240516,-151.58969926,0.00010973,2]
[340164646,1728730240525,-151.06045212,0.00010973,2]
[340164647,1728730240534,-500.44462467,0.00010973,2]
[340164648,1728730240544,-159.84682305,0.00010973,2]
[340164649,1728730240553,-150.0,0.0001098,2]
[340164650,1728730240562,-150.0,0.00010982,2]
[340164651,1728730240572,-150.0,0.00010982,2]
[340164652,1728730240582,-299.58624136,0.00010986,2]
[340164653,1728730240592,-150.0,0.00010989,2]
[340164654,1728730240601,-150.0,0.00010993,2]
[340164655,1728730240610,-330.6373244,0.00010995,2]
[340164656,1728730240619,-3904.613995,0.00010995,2]
[340164657,1728730240629,-798.3121071,0.00010995,2]
[340164658,1728730240638,-179.8538612,0.00010995,2]
[340164659,1728730240647,-231.63587213,0.00010999,2]
[340164660,1728730240657,-10797.84035129,0.00011,2]
[340164661,1728730240669,-479.84134893,0.00011,2]
[340164668,1728730243294,-690.9278988,0.00011,2]
[340164669,1728730243478,-86668.32494295,0.00011,2]
[340164670,1728730243488,-114855.34309564,0.00011,2]
[340164671,1728730243503,-60623.41385287,0.00011,2]
[340164813,1728730246136,-4347.7801562,0.00011,2]
[340164814,1728730246147,-791.71329158,0.00011,2]
[340164815,1728730246291,-0.3456857,0.00011,2]
[340164816,1728730246306,-30864.06909075,0.00011,2]
[340164817,1728730246362,-566.82135719,0.00011,2]
[340164819,1728730316189,260.38,0.0001018,2]
[340164821,1728730467730,201.11,0.00010037,2]
[340164822,1728730580755,328.0,0.00010032,2]
[340164824,1728730665465,250.0,0.00010016,2]
[340164825,1728730674338,472.44,8.219e-05,2]
[340164826,1728730783509,306.7,9.984e-05,2]
[340164827,1728730810408,170.28,9.996e-05,2]
[340164828,1728730822143,906.62,9.996e-05,2]
[340164829,1728730827553,250.0,0.00010009,2]
[340164830,1728730989960,231.23,9.997e-05,2]
[340164835,1728731183105,509.34,8.219e-05,2]
[340164836,1728731200216,250.0,9.975e-05,2]
[340164889,1728731294559,1000.0,0.00010041,2]
[340164890,1728731305938,503.71,0.00010026,2]
[340164898,1728731351404,250.0,0.00010012,2]
[340164899,1728731398674,170.28,0.00010026,2]
[340164900,1728731432343,-500.0,0.00010371,2]
[340164901,1728731432353,-500.0,0.00010371,2]
[340164902,1728731432362,-517.053,0.00010375,2]
[340164903,1728731432371,-1088.7012,0.00010375,2]
[340164904,1728731432380,-509.34,0.00010475,2]
[340164905,1728731432389,-1428.7982,0.00010659,2]
[340164906,1728731432398,-150.0,0.00010758,2]
[340164907,1728731432408,-300.0,0.00010758,2]
[340164908,1728731432419,-1475.3221,0.00010759,2]
[340164909,1728731432428,-747.4548,0.00010759,2]
[340164910,1728731432438,-825.9243,0.00010759,2]
[340164911,1728731432447,-13050.0314,0.00010759,2]
[340164912,1728731432456,-2061.1445,0.00010759,2]
[340164913,1728731432466,-214.7806,0.00010759,2]
[340164914,1728731432476,-9546.30691449,0.00010759,2]
[340164915,1728731432485,-413.9447,0.00010859,2]
[340164916,1728731432494,-49261.2829,0.00010859,2]
[340164917,1728731432503,-150526.0668,0.00010859,2]
[340164918,1728731432513,-312.592,0.00010859,2]
[340164919,1728731432523,-1404.55,0.00010873,2]
[340164920,1728731432537,-472.48,0.00010873,2]
[340164921,1728731432547,-499.99,0.00010873,2]
[340164922,1728731432557,-500.0,0.00010873,2]
[340164923,1728731432566,-154.41011973,0.00010899,2]
[340164924,1728731432575,-154.41011973,0.00010899,2]
[340164925,1728731432584,-1244.0,0.000109,2]
[340164926,1728731432593,-626.0,0.000109,2]
[340164927,1728731432603,-894.0289,0.000109,2]
[340164928,1728731432612,-1231.6386,0.000109,2]
[340164929,1728731432621,-7500.0,0.000109,2]
[340164930,1728731432630,-1796.88,0.000109,2]
[340164931,1728731432640,-9154.644866,0.000109,2]
[340164932,1728731432649,-150.0,0.000109,2]
[340164933,1728731432658,-423.99,0.000109,2]
[340164934,1728731432669,-150.0,0.000109,2]
[340164935,1728731432678,-429.44,0.000109,2]
[340164936,1728731432688,-300.0,0.000109,2]
[340164937,1728731432697,-755.56,0.000109,2]
[340164938,1728731432707,-150.0,0.000109,2]
[340164939,1728731432716,-359.09,0.000109,2]
[340164940,1728731432725,-321.15,0.000109,2]
[340164941,1728731432734,-150.0,0.000109,2]
[340164942,1728731432744,-150.0,0.000109,2]
[340164943,1728731432753,-150.0,0.00010901,2]
[340164944,1728731432762,-935.0,0.00010901,2]
[340164945,1728731432772,-560.0,0.00010901,2]
[340164946,1728731432782,-1908.0,0.00010901,2]
[340164947,1728731432792,-3356.0,0.00010901,2]
[340164948,1728731432801,-555.0,0.00010901,2]
[340164949,1728731432810,-1910.0,0.00010901,2]
[340164950,1728731432820,-808.0,0.00010901,2]
[340164951,1728731432830,-150.0,0.00010904,2]
[340164952,1728731432840,-5882.0,0.00010904,2]
[340164953,1728731432849,-13526.0,0.00010904,2]
[340164954,1728731432859,-1150.0,0.00010904,2]
[340164955,1728731432869,-236.718,0.00010912,2]
[340164956,1728731432879,-168.40668733,0.00010912,2]
[340164957,1728731432888,-200.0,0.00010959,2]
[340164958,1728731432898,-435.97,0.00010959,2]
[340164959,1728731432907,-254.42,0.00010959,2]
[340164960,1728731432918,-150.0,0.00010959,2]
[340164961,1728731432927,-157.07,0.00010959,2]
[340164962,1728731432937,-250.0,0.00010959,2]
[340164963,1728731432946,-230.12,0.00010959,2]
[340164964,1728731432955,-191.77,0.00010959,2]
[340164965,1728731432966,-159.81,0.00010959,2]
[340164966,1728731432975,-799.06,0.00010959,2]
[340164967,1728731432985,-181.12,0.00010959,2]
[340164968,1728731432995,-154.41011973,0.00010973,2]
[340164969,1728731433004,-151.00838881,0.00010973,2]
[340164970,1728731433013,-500.0,0.00010973,2]
[340164971,1728731433023,-500.0,0.00010973,2]
[340164972,1728731433032,-500.56890875,0.00010973,2]
[340164973,1728731433042,-500.66472637,0.00010973,2]
[340164974,1728731433052,-239.1587457,0.00010995,2]
[340164975,1728731433062,-150.1093452,0.00010995,2]
[340164976,1728731433072,-762.8708261,0.00010995,2]
[340164977,1728731433082,-1336.5604457,0.00010995,2]
[340164978,1728731433092,-154.42391475,0.00010999,2]
[340164979,1728731433102,-100321.5713027,0.00011,2]
[340164980,1728731433111,-549337.97377786,0.00011,2]
[340164981,1728731433124,-62579.98488701,0.00011,2]
[340164982,1728731433135,-544.57707993,0.00011,2]
[340164983,1728731433147,-418.54007673,0.00011,2]
[340164984,1728731433158,-500.56005864,0.00011,2]
[340164985,1728731433190,-458026.97060595,0.00011,2]
[340164986,1728731433202,-3209.95,0.00011,2]
[340164988,1728731438494,-580485.72553477,0.00011,2]
[340164989,1728731438534,-12294.39456971,0.00011,2]
[340164990,1728731438546,-31844.98063836,0.00011,2]
[340164991,1728731438667,-693.51935749,0.00011,2]
[340164992,1728731438679,-4625.2484692,0.00011,2]
[340164993,1728731438804,-427.20419193,0.00011,2]
[340165050,1728731440374,-1083.0,0.00010904,2]
[340165051,1728731440383,-200.81958987,0.00011,2]
[340165057,1728731440435,-770.0,0.00011,2]
[340165085,1728731440799,-1451.3206893,0.00011,2]
[340165086,1728731440812,-1891.895,0.00011,2]
[340165087,1728731440823,-882.42280188,0.00011,2]
[340165098,1728731443353,-13095.07788184,0.00011,2]
[340165102,1728731443495,-259.28879657,0.00011,2]
[340165103,1728731443621,-1175.92000073,0.00011,2]
[340165155,1728731446297,-282.6315,0.00011,2]
[340165158,1728731446423,-1828.17275131,0.00011,2]
[340165159,1728731446550,-25534.90031359,0.00011,2]
[340165160,1728731446561,-4757.12726832,0.00011,2]
[340165161,1728731446587,-362572.85901367,0.00011,2]
[340165164,1728731502201,3558.562,0.00010171,2]
[340165166,1728731667730,488.61,8.34e-05,2]
[340165167,1728731677373,270.32,0.00010189,2]
[340165168,1728731779157,250.0,0.00010171,2]
[340165173,1728731865849,200.0,0.00010146,2]
[340165174,1728731866157,251.85,0.00010146,2]
[340165175,1728731873813,250.0,0.00010144,2]
[340165176,1728731941010,167.94,0.00010103,2]
[340165177,1728732137192,1199.1,0.00010096,2]
[340165178,1728732212707,193.49,0.00010116,2]
[340165179,1728732221487,494.33,8.219e-05,2]
[340165180,1728732271380,250.0,0.00010147,2]
[340165181,1728732330335,49317.45610859,0.000101,2]
[340165182,1728732337452,22000.0,9e-05,2]
[340165183,1728732356833,20117.63406567,6.94e-05,2]
[340165186,1728732361127,250.0,0.00010125,2]
[340165187,1728732378369,390.42,0.00010146,2]
[340165188,1728732418086,840.0,0.00010153,2]
[340165196,1728732464877,156.12,0.00010151,2]
[340165198,1728732522181,2441.38363459,0.0001,2]
[340165233,1728732576421,1838.74,0.00010205,2]
[340165262,1728732631538,-494.33,0.00010483,2]
[340165263,1728732631548,-150.0,0.00010758,2]
[340165266,1728732631558,-28221.556,0.00010759,2]
[340165267,1728732631567,-12449.80768089,0.00010759,2]
[340165269,1728732631578,-10042.64311911,0.00010759,2]
[340165271,1728732631588,-6388.57745674,0.00010759,2]
[340165273,1728732631597,-1577.1293,0.000108,2]
[340165275,1728732631606,-4414.9101,0.000108,2]
[340165277,1728732631616,-214.7806,0.000108,2]
[340165278,1728732631625,-500.0,0.00010873,2]
[340165279,1728732631634,-500.0,0.00010873,2]
[340165280,1728732631648,-500.0,0.00010873,2]
[340165281,1728732631657,-7500.0,0.000109,2]
[340165282,1728732631666,-628.99021115,0.000109,2]
[340165283,1728732631675,-3069.45381349,0.000109,2]
[340165284,1728732631684,-810.714042,0.000109,2]
[340165285,1728732631694,-109513.61816669,0.000109,2]
[340165286,1728732631708,-17416.93220924,0.000109,2]
[340165287,1728732631734,-546.70831491,0.000109,2]
[340165288,1728732631746,-768.88120532,0.000109,2]
[340165289,1728732631757,-2166.83049677,0.000109,2]
[340165290,1728732631768,-77439.54740707,0.000109,2]
[340165291,1728732631778,-395.6864,0.000109,2]
[340165292,1728732631787,-440.0921,0.000109,2]
[340165293,1728732631797,-1134.0,0.000109,2]
[340165294,1728732631806,-175.19255356,0.000109,2]
[340165295,1728732631816,-195.47382231,0.000109,2]